lending/lending_fUSD_20240710
["ID","MTS","AMOUNT","RATE_DAILY","PERIOD"]
[331659888,1720607467054,-852.22,0.00013917,2]
[331659889,1720607467064,-500.0,0.00013917,2]
[331659890,1720607467074,-500.0,0.00013917,2]
[331659891,1720607467083,-525.06,0.00013917,2]
[331659892,1720607467475,-3622.38,0.00013917,2]
[331659893,1720607467485,-696.85,0.00013917,2]
[331659894,1720607467495,-500.0,0.00013917,2]
[331659895,1720607467504,-500.0,0.00013917,2]
[331659896,1720607467514,-500.0,0.00013917,2]
[331659897,1720607467523,-544.45,0.00013917,2]
[331659898,1720607467533,-760.7,0.00013917,2]
[331659899,1720607467543,-500.0,0.00013917,2]
[331659900,1720607467552,-299.89406005,0.00013917,2]
[331659901,1720607467908,-200.10593995,0.00013917,2]
[331659902,1720607467919,-500.0,0.00013917,2]
[331659903,1720607467928,-473.37406005,0.00013917,2]
[331659904,1720607469140,-506.61,0.00013698,2]
[331659905,1720607469149,-838.03592525,0.00013698,2]
[331659906,1720607469162,-621.8199186,0.00013698,2]
[331659907,1720607469173,-344.07082118,0.00013698,2]
[331659908,1720607469185,-526.499415,0.00013698,2]
[331659909,1720607469197,-7195.93954885,0.00013698,2]
[331659910,1720607469206,-6259.77732824,0.0001379,2]
[331659911,1720607469216,-26.62593995,0.00013917,2]
[331659912,1720607469226,-882.92,0.00013917,2]
[331659913,1720607469236,-500.0,0.00013917,2]
[331659914,1720607469248,-967.46,0.00013917,2]
[331659915,1720607469258,-500.0,0.00013917,2]
[331659916,1720607469269,-500.0,0.00013917,2]
[331659917,1720607469280,-751.17,0.00013917,2]
[331659918,1720607469291,-500.0,0.00013917,2]
[331659919,1720607469302,-500.0,0.00013917,2]
[331659920,1720607469312,-500.0,0.00013917,2]
[331659921,1720607469323,-634.9,0.00013917,2]
[331659922,1720607469334,-624.58,0.00013917,2]
[331659923,1720607469343,-600.35,0.00013917,2]
[331659924,1720607469353,-797.7,0.00013917,2]
[331659925,1720607469363,-500.0,0.00013917,2]
[331659926,1720607469374,-500.0,0.00013917,2]
[331659927,1720607469384,-500.0,0.00013917,2]
[331659928,1720607469394,-821.13,0.00013917,2]
[331659929,1720607469404,-500.0,0.00013917,2]
[331659930,1720607469415,-500.0,0.00013917,2]
[331659931,1720607469425,-1973.42,0.00013917,2]
[331659932,1720607469435,-500.0,0.00013917,2]
[331659933,1720607469445,-500.0,0.00013917,2]
[331659934,1720607469455,-500.0,0.00013917,2]
[331659935,1720607469464,-2150.6,0.00013917,2]
[331659936,1720607469475,-1011.9,0.00013917,2]
[331659937,1720607469485,-902.73,0.00013917,2]
[331659938,1720607469497,-500.0,0.00013917,2]
[331659939,1720607469507,-500.0,0.00013917,2]
[331659940,1720607469516,-1788.44,0.00013917,2]
[331659941,1720607469526,-500.0,0.00013917,2]
[331659942,1720607469536,-653.72,0.00013917,2]
[331659943,1720607469545,-1544.77,0.00013917,2]
[331659944,1720607469555,-500.0,0.00013917,2]
[331659945,1720607469565,-500.0,0.00013917,2]
[331659946,1720607469574,-500.0,0.00013917,2]
[331659947,1720607469585,-1364.43,0.00013917,2]
[331659948,1720607469595,-624.43,0.00013917,2]
[331659949,1720607469604,-0.24052276,0.00013917,2]
[331659950,1720607530823,195.18,0.00010959,2]
[331659951,1720607584992,290.81091167,0.00010959,2]
[331659952,1720607589443,157.071919,0.00025,60]
[331659955,1720607675315,40.93879432,0.00010959,2]
[331659956,1720607675342,812.14120568,0.00010959,2]
[331659957,1720607737729,3280.2096217,0.00010959,2]
[331659958,1720607737756,10000.0,0.00010959,2]
[331659959,1720607737781,10000.0,0.00010959,2]
[331659960,1720607737807,10000.0,0.00010959,2]
[331659961,1720607737831,10000.0,0.00010959,2]
[331659962,1720607737855,10000.0,0.00010959,2]
[331659963,1720607737879,10000.0,0.00010959,2]
[331659964,1720607737903,10000.0,0.00010959,2]
[331659965,1720607737928,10000.0,0.00010959,2]
[331659966,1720607737952,10000.0,0.00010959,2]
[331659967,1720607737979,356336.76125306,0.00010959,2]
[331659968,1720607738005,46646.12409243,0.00010959,2]
[331659969,1720607738223,348.83942384,0.00010959,2]
[331659971,1720607740340,333.71499793,0.00010959,2]
[331659972,1720607746024,1054.75163985,0.00010959,2]
[331659973,1720607746731,185.56,0.00010204,2]
[331659974,1720607747426,724.99466785,0.00011199,2]
[331659975,1720607750246,160.81217705,0.00010959,2]
[331659976,1720607750267,160.81217705,0.00010959,2]
[331659977,1720607750290,92.76688546,0.00010959,2]
[331659978,1720607752503,160.81217705,0.00010959,2]
[331659979,1720607752524,119.19518607,0.00010959,2]
[331659980,1720607777281,155.0,0.00027,120]
[331659982,1720607871731,153.09663702,0.00010732,2]
[331659983,1720607871757,153.09663702,0.00010732,2]
[331659984,1720607871780,60.54672596,0.00010732,2]
[331659985,1720607924215,348.70208886,0.00010732,2]
[331659986,1720607962877,150.0,0.00011199,2]
[331659987,1720607962899,150.0,0.00011199,2]
[331659988,1720607962920,150.0,0.00011199,2]
[331659989,1720607962941,53.3571194,0.00011199,2]
[331659990,1720607988256,150.0,0.00011199,2]
[331659991,1720607988278,150.0,0.00011199,2]
[331659992,1720607988300,150.0,0.00011199,2]
[331659993,1720607988327,150.0,0.00011199,2]
[331659994,1720607988356,150.0,0.00011199,2]
[331659995,1720607988377,150.0,0.00011199,2]
[331659996,1720607988401,150.0,0.00011199,2]
[331659997,1720607988423,150.0,0.00011199,2]
[331659998,1720607988447,150.0,0.00011199,2]
[331659999,1720607988473,150.0,0.00011199,2]
[331660000,1720607988495,150.0,0.00011199,2]
[331660001,1720607988517,150.0,0.00011199,2]
[331660002,1720607988540,150.0,0.00011199,2]
[331660003,1720607988563,150.0,0.00011199,2]
[331660004,1720607988586,150.0,0.00011199,2]
[331660005,1720607988610,150.0,0.00011199,2]
[331660006,1720607988632,150.0,0.00011199,2]
[331660007,1720607988654,150.0,0.00011199,2]
[331660008,1720607988675,150.0,0.00011199,2]
[331660009,1720607988697,150.0,0.00011199,2]
[331660010,1720607988719,150.0,0.00011199,2]
[331660011,1720607988741,150.0,0.00011199,2]
[331660012,1720607988763,150.0,0.00011199,2]
[331660013,1720607988784,150.0,0.00011199,2]
[331660014,1720607988805,150.0,0.00011199,2]
[331660015,1720607988826,150.0,0.00011199,2]
[331660016,1720607988849,150.0,0.00011199,2]
[331660017,1720607988870,150.0,0.00011199,2]
[331660018,1720607988892,150.0,0.00011199,2]
[331660019,1720607988913,150.0,0.00011199,2]
[331660020,1720607988936,150.0,0.00011199,2]
[331660021,1720607988959,150.0,0.00011199,2]
[331660022,1720607988981,150.0,0.00011199,2]
[331660023,1720607989004,150.0,0.00011199,2]
[331660024,1720607989027,150.0,0.00011199,2]
[331660025,1720607989049,150.0,0.00011199,2]
[331660026,1720607989070,150.0,0.00011199,2]
[331660027,1720607989092,150.0,0.00011199,2]
[331660028,1720607989113,150.0,0.00011199,2]
[331660029,1720607989139,150.0,0.00011199,2]
[331660030,1720607989161,150.0,0.00011199,2]
[331660031,1720607989183,150.0,0.00011199,2]
[331660032,1720607989204,150.0,0.00011199,2]
[331660033,1720607989226,150.0,0.00011199,2]
[331660034,1720607989247,150.0,0.00011199,2]
[331660035,1720607989270,150.0,0.00011199,2]
[331660036,1720607989292,150.0,0.00011199,2]
[331660037,1720607989333,150.0,0.00011199,2]
[331660038,1720607989361,150.0,0.00011199,2]
[331660039,1720607989387,150.0,0.00011199,2]
[331660040,1720607989413,150.0,0.00011199,2]
[331660041,1720607989440,150.0,0.00011199,2]
[331660042,1720607989468,150.0,0.00011199,2]
[331660043,1720607989492,150.0,0.00011199,2]
[331660044,1720607989516,150.0,0.00011199,2]
[331660045,1720607989541,158.60021211,0.00011199,2]
[331660046,1720607989568,150.0,0.00011199,2]
[331660047,1720607989600,1776.45109461,0.00011199,2]
[331660048,1720608000861,150.0,0.00011199,2]
[331660049,1720608000883,150.0,0.00011199,2]
[331660050,1720608000905,150.0,0.00011199,2]
[331660051,1720608000926,150.0,0.00011199,2]
[331660052,1720608000955,150.0,0.00011199,2]
[331660053,1720608000978,150.0,0.00011199,2]
[331660054,1720608001000,150.0,0.00011199,2]
[331660055,1720608001023,150.0,0.00011199,2]
[331660056,1720608001045,150.0,0.00011199,2]
[331660057,1720608001067,150.0,0.00011199,2]
[331660058,1720608001089,150.0,0.00011199,2]
[331660059,1720608001112,150.0,0.00011199,2]
[331660060,1720608001133,150.0,0.00011199,2]
[331660061,1720608001154,150.0,0.00011199,2]
[331660062,1720608001176,150.0,0.00011199,2]
[331660063,1720608001198,150.0,0.00011199,2]
[331660064,1720608001223,107.7316535,0.00011199,2]
[331660065,1720608011177,-6733.52472661,0.000118,2]
[331660066,1720608047240,436.43793814,0.00011199,2]
[331660067,1720608053743,300.0,0.00011199,2]
[331660068,1720608059017,254.45228452,0.00011199,2]
[331660069,1720608117265,600.0,0.00011199,2]
[331660070,1720608130508,300.0,0.00011199,2]
[331660071,1720608158321,210.38124784,0.00011199,2]
[331660072,1720608185732,3650.24108052,0.00011199,2]
[331660073,1720608205295,2514.96272237,0.00011199,2]
[331660074,1720608205322,635.03727763,0.00011199,2]
[331660075,1720608288411,150.0,0.00011199,2]
[331660076,1720608288432,5.66263609,0.00011199,2]
[331660077,1720608342921,150.0,0.00011199,2]
[331660078,1720608342950,300.0,0.00011199,2]
[331660079,1720608414345,1599.75891948,0.00011199,2]
[331660080,1720608461654,378.6,0.00010482,2]
[331660097,1720608633359,-290.00184038,0.00012273,2]
[331660098,1720608633369,-302.10318201,0.00012302,2]
[331660099,1720608633379,-536.96987643,0.00012302,2]
[331660100,1720608633389,-13697.55,0.00012352,2]
[331660101,1720608633398,-250.0,0.0001236,2]
[331660102,1720608633408,-250.0,0.00012468,2]
[331660103,1720608633417,-7195.93954885,0.00012468,2]
[331660104,1720608633426,-300.0,0.0001247,2]
[331660105,1720608633436,-3073.19,0.00012471,2]
[331660106,1720608633445,-181.07,0.00012525,2]
[331660107,1720608633455,-150.0,0.0001259,2]
[331660109,1720608633465,-150.0,0.000126,2]
[331660110,1720608633474,-169.13,0.0001267,2]
[331660111,1720608633483,-880.0,0.0001267,2]
[331660112,1720608633495,-34976.88,0.0001267,2]
[331660113,1720608633504,-378.6,0.00012746,2]
[331660114,1720608633513,-188.2,0.00012755,2]
[331660115,1720608633522,-499.99,0.00012811,2]
[331660116,1720608633531,-2551.54,0.00012871,2]
[331660117,1720608633541,-300.0,0.00013128,2]
[331660118,1720608633550,-2379.74333392,0.00013128,2]
[331660119,1720608633559,-182.69519974,0.00013183,2]
[331660120,1720608633568,-988.4685,0.00013398,2]
[331660121,1720608633577,-2500.0,0.00013398,2]
[331660122,1720608633586,-1054.78546131,0.00013488,2]
[331660123,1720608633595,-9236.68269313,0.00013497,2]
[331660124,1720608633604,-1000.0,0.00013498,2]
[331660125,1720608633614,-48368.0843,0.00013498,2]
[331660126,1720608633623,-86275.6503,0.00013498,2]
[331660127,1720608633634,-500.0,0.00013498,2]
[331660128,1720608633643,-1000.0,0.00013498,2]
[331660129,1720608633652,-1249.16253657,0.00013516,2]
[331660130,1720608633662,-602.50570891,0.00013543,2]
[331660131,1720608633671,-156.60592488,0.00013598,2]
[331660132,1720608633680,-1000.0,0.00013598,2]
[331660133,1720608633689,-7500.0,0.00013598,2]
[331660134,1720608633699,-150.0,0.00013636,2]
[331660135,1720608633708,-150.0,0.00013639,2]
[331660136,1720608633717,-150.0,0.00013641,2]
[331660137,1720608633726,-150.0,0.00013646,2]
[331660138,1720608633735,-150.0,0.00013647,2]
[331660139,1720608633746,-150.0,0.00013649,2]
[331660140,1720608633755,-182.69519973,0.00013653,2]
[331660141,1720608633764,-165.08470391,0.00013653,2]
[331660142,1720608633773,-150.0,0.00013655,2]
[331660143,1720608633783,-150.0,0.00013655,2]
[331660144,1720608633793,-150.0,0.00013656,2]
[331660145,1720608633802,-150.0,0.00013656,2]
[331660146,1720608633813,-150.0,0.00013664,2]
[331660147,1720608633823,-150.0,0.00013672,2]
[331660148,1720608633834,-150.0,0.00013673,2]
[331660149,1720608633843,-150.0,0.00013678,2]
[331660150,1720608633852,-150.0,0.00013679,2]
[331660151,1720608633862,-173.44,0.0001368,2]
[331660152,1720608633872,-165.08470391,0.00013681,2]
[331660153,1720608633881,-150.0,0.00013682,2]
[331660154,1720608633890,-420.0,0.00013682,2]
[331660155,1720608633899,-500.0,0.00013698,2]
[331660156,1720608633910,-521.6,0.00013698,2]
[331660157,1720608633920,-500.0,0.00013698,2]
[331660158,1720608633929,-500.0,0.00013698,2]
[331660159,1720608633938,-548.47178466,0.00013698,2]
[331660160,1720608633948,-500.0,0.00013698,2]
[331660161,1720608633957,-500.0,0.00013698,2]
[331660162,1720608633967,-500.0,0.00013698,2]
[331660163,1720608633977,-500.0,0.00013698,2]
[331660164,1720608633986,-500.0,0.00013698,2]
[331660165,1720608633997,-383.11909144,0.00013698,2]
[331660166,1720608634006,-500.0,0.00013698,2]
[331660167,1720608634015,-500.0,0.00013698,2]
[331660168,1720608634025,-500.0,0.00013698,2]
[331660169,1720608634034,-500.0,0.00013698,2]
[331660170,1720608634043,-500.0,0.00013698,2]
[331660171,1720608634052,-500.0,0.00013698,2]
[331660172,1720608634062,-500.0,0.00013698,2]
[331660173,1720608634071,-500.0,0.00013698,2]
[331660174,1720608634080,-500.0,0.00013698,2]
[331660175,1720608634089,-500.0,0.00013698,2]
[331660176,1720608634099,-500.0,0.00013698,2]
[331660177,1720608634108,-611.07,0.00013698,2]
[331660178,1720608634117,-500.0,0.00013698,2]
[331660179,1720608634126,-500.0,0.00013698,2]
[331660180,1720608634135,-500.0,0.00013698,2]
[331660181,1720608634144,-500.0,0.00013698,2]
[331660182,1720608634153,-500.0,0.00013698,2]
[331660183,1720608634163,-641.61062421,0.00013698,2]
[331660184,1720608634172,-500.0,0.00013698,2]
[331660185,1720608634182,-500.0,0.00013698,2]
[331660186,1720608634191,-500.0,0.00013698,2]
[331660187,1720608634200,-500.0,0.00013698,2]
[331660188,1720608634210,-500.0,0.00013698,2]
[331660189,1720608634219,-500.0,0.00013698,2]
[331660191,1720608634229,-500.0,0.00013698,2]
[331660192,1720608634238,-500.0,0.00013698,2]
[331660193,1720608634248,-574.97,0.00013698,2]
[331660194,1720608634257,-500.0,0.00013698,2]
[331660195,1720608634266,-500.0,0.00013698,2]
[331660196,1720608634275,-500.0,0.00013698,2]
[331660197,1720608634284,-500.0,0.00013698,2]
[331660198,1720608634293,-500.0,0.00013698,2]
[331660199,1720608634302,-500.0,0.00013698,2]
[331660200,1720608634311,-500.0,0.00013698,2]
[331660201,1720608634321,-500.0,0.00013698,2]
[331660202,1720608634330,-500.0,0.00013698,2]
[331660203,1720608634339,-500.0,0.00013698,2]
[331660204,1720608634348,-500.0,0.00013698,2]
[331660205,1720608634357,-500.0,0.00013698,2]
[331660206,1720608634366,-500.0,0.00013698,2]
[331660207,1720608634375,-548.39081359,0.00013698,2]
[331660208,1720608634384,-500.0,0.00013698,2]
[331660209,1720608634393,-500.0,0.00013698,2]
[331660210,1720608634403,-500.0,0.00013698,2]
[331660211,1720608634412,-500.0,0.00013698,2]
[331660212,1720608634422,-500.0,0.00013698,2]
[331660213,1720608634431,-500.0,0.00013698,2]
[331660214,1720608634440,-500.0,0.00013698,2]
[331660215,1720608634449,-500.0,0.00013698,2]
[331660216,1720608634458,-500.0,0.00013698,2]
[331660217,1720608634467,-500.0,0.00013698,2]
[331660218,1720608634476,-506.46,0.00013698,2]
[331660219,1720608634485,-500.0,0.00013698,2]
[331660220,1720608634495,-500.0,0.00013698,2]
[331660221,1720608634504,-500.0,0.00013698,2]
[331660222,1720608634513,-500.0,0.00013698,2]
[331660223,1720608634522,-1243.95,0.00013698,2]
[331660224,1720608634531,-500.0,0.00013698,2]
[331660225,1720608634540,-500.0,0.00013698,2]
[331660226,1720608634549,-514.21,0.00013698,2]
[331660227,1720608634558,-500.0,0.00013698,2]
[331660228,1720608634568,-500.0,0.00013698,2]
[331660229,1720608634577,-500.0,0.00013698,2]
[331660230,1720608634587,-500.0,0.00013698,2]
[331660231,1720608634596,-500.0,0.00013698,2]
[331660232,1720608634605,-594.74,0.00013698,2]
[331660233,1720608634623,-815.62,0.00013698,2]
[331660234,1720608634636,-500.0,0.00013698,2]
[331660235,1720608634648,-500.0,0.00013698,2]
[331660236,1720608634658,-500.0,0.00013698,2]
[331660237,1720608634668,-500.0,0.00013698,2]
[331660238,1720608634679,-500.0,0.00013698,2]
[331660239,1720608634689,-500.0,0.00013698,2]
[331660240,1720608634699,-500.0,0.00013698,2]
[331660241,1720608634711,-500.0,0.00013698,2]
[331660242,1720608634721,-500.0,0.00013698,2]
[331660243,1720608634732,-500.0,0.00013698,2]
[331660244,1720608634744,-710.6,0.00013698,2]
[331660245,1720608634753,-500.0,0.00013698,2]
[331660246,1720608634764,-566.98,0.00013698,2]
[331660247,1720608634774,-500.0,0.00013698,2]
[331660248,1720608634784,-500.0,0.00013698,2]
[331660249,1720608634797,-500.0,0.00013698,2]
[331660250,1720608634809,-500.0,0.00013698,2]
[331660251,1720608634818,-717.74,0.00013698,2]
[331660252,1720608634828,-500.0,0.00013698,2]
[331660253,1720608634838,-500.0,0.00013698,2]
[331660254,1720608634848,-500.0,0.00013698,2]
[331660255,1720608634857,-500.0,0.00013698,2]
[331660256,1720608634867,-500.0,0.00013698,2]
[331660257,1720608634876,-500.0,0.00013698,2]
[331660258,1720608634886,-500.0,0.00013698,2]
[331660259,1720608635146,-500.0,0.00013698,2]
[331660260,1720608635156,-500.0,0.00013698,2]
[331660261,1720608635166,-500.0,0.00013698,2]
[331660262,1720608635176,-500.0,0.00013698,2]
[331660263,1720608635186,-500.0,0.00013698,2]
[331660264,1720608635195,-529.0,0.00013698,2]
[331660265,1720608635205,-887.15,0.00013698,2]
[331660266,1720608635215,-500.0,0.00013698,2]
[331660267,1720608635224,-500.0,0.00013698,2]
[331660268,1720608635233,-500.0,0.00013698,2]
[331660269,1720608635244,-500.0,0.00013698,2]
[331660270,1720608635253,-500.0,0.00013698,2]
[331660271,1720608635262,-772.64,0.00013698,2]
[331660272,1720608635272,-500.0,0.00013698,2]
[331660273,1720608635281,-500.0,0.00013698,2]
[331660274,1720608635291,-563.33,0.00013698,2]
[331660275,1720608635302,-615.96977371,0.00013698,2]
[331660276,1720608635311,-548.7,0.00013698,2]
[331660277,1720608635320,-500.0,0.00013698,2]
[331660278,1720608635330,-500.0,0.00013698,2]
[331660279,1720608635340,-500.0,0.00013698,2]
[331660280,1720608635351,-500.0,0.00013698,2]
[331660281,1720608635360,-500.0,0.00013698,2]
[331660282,1720608635370,-500.0,0.00013698,2]
[331660283,1720608635380,-646.45357288,0.00013698,2]
[331660284,1720608635391,-500.0,0.00013698,2]
[331660285,1720608635401,-500.0,0.00013698,2]
[331660286,1720608635410,-500.0,0.00013698,2]
[331660287,1720608635420,-632.96,0.00013698,2]
[331660288,1720608635430,-500.0,0.00013698,2]
[331660289,1720608635443,-500.0,0.00013698,2]
[331660290,1720608635453,-500.0,0.00013698,2]
[331660291,1720608635463,-500.0,0.00013698,2]
[331660292,1720608635473,-500.0,0.00013698,2]
[331660293,1720608635483,-500.0,0.00013698,2]
[331660294,1720608635494,-570.77,0.00013698,2]
[331660295,1720608635504,-500.0,0.00013698,2]
[331660296,1720608635514,-598.83,0.00013698,2]
[331660297,1720608635524,-787.42,0.00013698,2]
[331660298,1720608635534,-500.0,0.00013698,2]
[331660299,1720608635543,-828.56,0.00013698,2]
[331660300,1720608635553,-554.17,0.00013698,2]
[331660301,1720608635563,-510.31,0.00013698,2]
[331660302,1720608635572,-522.7721897,0.00013698,2]
[331660303,1720608635581,-500.0,0.00013698,2]
[331660304,1720608635591,-500.0,0.00013698,2]
[331660305,1720608635600,-500.0,0.00013698,2]
[331660306,1720608635610,-500.0,0.00013698,2]
[331660307,1720608635620,-500.0,0.00013698,2]
[331660308,1720608635631,-500.0,0.00013698,2]
[331660309,1720608635640,-500.0,0.00013698,2]
[331660310,1720608635650,-610.62,0.00013698,2]
[331660311,1720608635660,-500.0,0.00013698,2]
[331660312,1720608635669,-500.0,0.00013698,2]
[331660313,1720608635679,-745.25,0.00013698,2]
[331660314,1720608635688,-500.0,0.00013698,2]
[331660315,1720608635697,-1000.0,0.00013698,2]
[331660316,1720608635707,-500.0,0.00013698,2]
[331660317,1720608635716,-500.0,0.00013698,2]
[331660318,1720608635729,-500.0,0.00013698,2]
[331660319,1720608635739,-500.0,0.00013698,2]
[331660320,1720608635749,-500.0,0.00013698,2]
[331660321,1720608635760,-710.99,0.00013698,2]
[331660322,1720608635769,-500.0,0.00013698,2]
[331660323,1720608635779,-500.0,0.00013698,2]
[331660324,1720608635788,-500.0,0.00013698,2]
[331660325,1720608635799,-500.0,0.00013698,2]
[331660326,1720608635810,-500.0,0.00013698,2]
[331660327,1720608635820,-514.45,0.00013698,2]
[331660328,1720608635829,-714.31,0.00013698,2]
[331660329,1720608635839,-775.15,0.00013698,2]
[331660330,1720608635848,-503.21,0.00013698,2]
[331660331,1720608635858,-500.0,0.00013698,2]
[331660332,1720608635868,-500.0,0.00013698,2]
[331660333,1720608635878,-562.51,0.00013698,2]
[331660334,1720608635887,-500.0,0.00013698,2]
[331660335,1720608635898,-500.0,0.00013698,2]
[331660336,1720608635908,-500.0,0.00013698,2]
[331660337,1720608635918,-500.0,0.00013698,2]
[331660338,1720608635928,-806.89,0.00013698,2]
[331660339,1720608635938,-678.81,0.00013698,2]
[331660340,1720608635948,-500.0,0.00013698,2]
[331660341,1720608635958,-500.0,0.00013698,2]
[331660342,1720608635968,-564.08,0.00013698,2]
[331660343,1720608635977,-500.0,0.00013698,2]
[331660344,1720608635987,-500.0,0.00013698,2]
[331660345,1720608635998,-500.0,0.00013698,2]
[331660346,1720608636011,-500.0,0.00013698,2]
[331660347,1720608636020,-500.0,0.00013698,2]
[331660348,1720608636030,-500.0,0.00013698,2]
[331660349,1720608636040,-500.0,0.00013698,2]
[331660350,1720608636050,-500.0,0.00013698,2]
[331660351,1720608636060,-254.01,0.00013698,2]
[331660352,1720608636069,-677.79,0.00013698,2]
[331660353,1720608636080,-500.0,0.00013698,2]
[331660354,1720608636089,-500.0,0.00013698,2]
[331660355,1720608636099,-500.0,0.00013698,2]
[331660356,1720608636109,-500.0,0.00013698,2]
[331660357,1720608636119,-500.0,0.00013698,2]
[331660358,1720608636128,-500.0,0.00013698,2]
[331660359,1720608636138,-500.0,0.00013698,2]
[331660360,1720608636148,-500.0,0.00013698,2]
[331660361,1720608636157,-500.0,0.00013698,2]
[331660362,1720608636167,-500.0,0.00013698,2]
[331660363,1720608636177,-500.0,0.00013698,2]
[331660364,1720608636187,-500.0,0.00013698,2]
[331660365,1720608636197,-500.0,0.00013698,2]
[331660366,1720608636207,-534.3,0.00013698,2]
[331660367,1720608636217,-371.4532339,0.00013698,2]
[331660368,1720608636227,-500.0,0.00013698,2]
[331660369,1720608636236,-609.5,0.00013698,2]
[331660370,1720608636247,-500.0,0.00013698,2]
[331660371,1720608636257,-522.35,0.00013698,2]
[331660372,1720608636267,-500.0,0.00013698,2]
[331660373,1720608636276,-500.0,0.00013698,2]
[331660374,1720608636286,-573.41,0.00013698,2]
[331660375,1720608636296,-500.0,0.00013698,2]
[331660376,1720608636305,-500.0,0.00013698,2]
[331660377,1720608636315,-500.0,0.00013698,2]
[331660378,1720608636325,-500.0,0.00013698,2]
[331660379,1720608636336,-500.0,0.00013698,2]
[331660380,1720608636346,-500.0,0.00013698,2]
[331660381,1720608636357,-500.0,0.00013698,2]
[331660382,1720608636367,-500.0,0.00013698,2]
[331660383,1720608636377,-500.0,0.00013698,2]
[331660384,1720608636388,-500.0,0.00013698,2]
[331660385,1720608636398,-500.0,0.00013698,2]
[331660386,1720608636408,-500.0,0.00013698,2]
[331660387,1720608636418,-500.0,0.00013698,2]
[331660388,1720608636428,-500.0,0.00013698,2]
[331660389,1720608636438,-549.95,0.00013698,2]
[331660390,1720608636448,-500.0,0.00013698,2]
[331660391,1720608636459,-500.0,0.00013698,2]
[331660392,1720608636470,-500.0,0.00013698,2]
[331660393,1720608636480,-1006.27,0.00013698,2]
[331660394,1720608636490,-500.0,0.00013698,2]
[331660395,1720608636502,-500.0,0.00013698,2]
[331660396,1720608636512,-500.0,0.00013698,2]
[331660397,1720608636523,-500.0,0.00013698,2]
[331660398,1720608636533,-681.35,0.00013698,2]
[331660399,1720608636552,-586.59,0.00013698,2]
[331660400,1720608636564,-763.77,0.00013698,2]
[331660401,1720608636574,-517.62,0.00013698,2]
[331660402,1720608636585,-503.96,0.00013698,2]
[331660403,1720608636596,-500.0,0.00013698,2]
[331660404,1720608636606,-500.0,0.00013698,2]
[331660405,1720608636616,-500.0,0.00013698,2]
[331660406,1720608636627,-500.0,0.00013698,2]
[331660407,1720608636638,-500.0,0.00013698,2]
[331660408,1720608636650,-558.84911621,0.00013698,2]
[331660409,1720608636660,-500.0,0.00013698,2]